Department Family,Entity,Date,Expense Type,Expense Area,Supplier,Transaction Number,AP Amount,VAT Registration Number,Purchase Invoice Number,
Department of Health,Bridgewater Community Healthcare NHS Foundation Trust,31-Jan-18,Computer Software/License,Computing,PHOENIX PARTNERSHIP (LEEDS) LTD,24361853,"123,633.02",721671841,7935,
Department of Health,Bridgewater Community Healthcare NHS Foundation Trust,31-Jan-18,External Consultancy Fees,Offender Health - Wymott,IC CUBED (UK) LTD,24868690,"38,737.50",GB167903874,BRIDGE021,
Department of Health,Bridgewater Community Healthcare NHS Foundation Trust,31-Jan-18,Rent,Bevan House,LANDFILL LTD,25169682,"27,116.91",,4237,
Department of Health,Bridgewater Community Healthcare NHS Foundation Trust,31-Jan-18,Independent Sector,Intermediate Care Bed Based Team - Warrington,PHOENIX HEALTH WARRINGTON LTD,25270856,"39,000.00",,201718QTR3,
Department of Health,Bridgewater Community Healthcare NHS Foundation Trust,31-Jan-18,Rent,Oldham Estates,COMMUNITY HEALTH PARTNERSHIPS LTD,25284278,"48,517.00",GB782562113,0060052085,
Department of Health,Bridgewater Community Healthcare NHS Foundation Trust,31-Jan-18,Computer Software/License,Computing,PHOENIX PARTNERSHIP (LEEDS) LTD,25316585,"123,633.02",721671841,8136,
Department of Health,Bridgewater Community Healthcare NHS Foundation Trust,31-Jan-18,Lease Rents,0-19 Services - Oldham,COMMUNITY HEALTH PARTNERSHIPS LTD,25336232,"62,021.46",GB782562113,0060036625,
Department of Health,Bridgewater Community Healthcare NHS Foundation Trust,31-Jan-18,Lease Rents,0-19 Services - Oldham,COMMUNITY HEALTH PARTNERSHIPS LTD,25336234,"62,021.46",GB782562113,0060036624,
Department of Health,Bridgewater Community Healthcare NHS Foundation Trust,31-Jan-18,Lease Rents,0-19 Services - Oldham,COMMUNITY HEALTH PARTNERSHIPS LTD,25336236,"62,021.46",GB782562113,0060036626,
Department of Health,Bridgewater Community Healthcare NHS Foundation Trust,31-Jan-18,Lease Rents,0-19 Services - Oldham,COMMUNITY HEALTH PARTNERSHIPS LTD,25336239,"60,619.25",GB782562113,0060039658,
Department of Health,Bridgewater Community Healthcare NHS Foundation Trust,31-Jan-18,Lease Rents,0-19 Services - Oldham,COMMUNITY HEALTH PARTNERSHIPS LTD,25336243,"60,059.10",GB782562113,0060040379,
Department of Health,Bridgewater Community Healthcare NHS Foundation Trust,31-Jan-18,External Consultancy Fees,Finance,KPMG LLP,25336245,"417,588.00",791788859,5501496522,
Department of Health,Bridgewater Community Healthcare NHS Foundation Trust,31-Jan-18,Lease Rents,0-19 Services - Oldham,COMMUNITY HEALTH PARTNERSHIPS LTD,25336247,"60,199.74",GB782562113,0060044430,
Department of Health,Bridgewater Community Healthcare NHS Foundation Trust,31-Jan-18,Lease Rents,Widnes HCRC,COMMUNITY HEALTH PARTNERSHIPS LTD,25336248,"75,820.46",GB782562113,0060045489,
Department of Health,Bridgewater Community Healthcare NHS Foundation Trust,31-Jan-18,Lease Rents,Bath Street,COMMUNITY HEALTH PARTNERSHIPS LTD,25336250,"66,946.89",GB782562113,0060045505,
Department of Health,Bridgewater Community Healthcare NHS Foundation Trust,31-Jan-18,Lease Rents,Child Development Centre Orford,COMMUNITY HEALTH PARTNERSHIPS LTD,25336250,"53,561.95",GB782562113,0060045505,
Department of Health,Bridgewater Community Healthcare NHS Foundation Trust,31-Jan-18,Lease Rents,Chandler House,COMMUNITY HEALTH PARTNERSHIPS LTD,25336252,"54,666.70",GB782562113,0060045509,
Department of Health,Bridgewater Community Healthcare NHS Foundation Trust,31-Jan-18,Lease Rents,Claire House,COMMUNITY HEALTH PARTNERSHIPS LTD,25336252,"37,432.13",GB782562113,0060045509,
Department of Health,Bridgewater Community Healthcare NHS Foundation Trust,31-Jan-18,Lease Rents,Leigh Health Centre,COMMUNITY HEALTH PARTNERSHIPS LTD,25336252,"103,498.40",GB782562113,0060045509,
Department of Health,Bridgewater Community Healthcare NHS Foundation Trust,31-Jan-18,Lease Rents,Pemberton,COMMUNITY HEALTH PARTNERSHIPS LTD,25336252,"36,581.33",GB782562113,0060045509,
Department of Health,Bridgewater Community Healthcare NHS Foundation Trust,31-Jan-18,Lease Rents,Platt Bridge,COMMUNITY HEALTH PARTNERSHIPS LTD,25336252,"77,966.28",GB782562113,0060045509,
Department of Health,Bridgewater Community Healthcare NHS Foundation Trust,31-Jan-18,Lease Rents,Wigan Health Centre - Boston House,COMMUNITY HEALTH PARTNERSHIPS LTD,25336252,"76,010.17",GB782562113,0060045509,
Department of Health,Bridgewater Community Healthcare NHS Foundation Trust,31-Jan-18,Lease Rents,0-19 Services - Oldham,COMMUNITY HEALTH PARTNERSHIPS LTD,25336254,"60,194.82",GB782562113,0060045495,
Department of Health,Bridgewater Community Healthcare NHS Foundation Trust,31-Jan-18,Lease Rents,Widnes HCRC,COMMUNITY HEALTH PARTNERSHIPS LTD,25336262,"75,405.46",GB782562113,0060049373,
Department of Health,Bridgewater Community Healthcare NHS Foundation Trust,31-Jan-18,Lease Rents,0-19 Services - Oldham,COMMUNITY HEALTH PARTNERSHIPS LTD,25336264,"60,176.18",GB782562113,0060049409,
Department of Health,Bridgewater Community Healthcare NHS Foundation Trust,31-Jan-18,Lease Rents,Chandler House,COMMUNITY HEALTH PARTNERSHIPS LTD,25336266,"54,952.72",GB782562113,0060049422,
Department of Health,Bridgewater Community Healthcare NHS Foundation Trust,31-Jan-18,Lease Rents,Claire House,COMMUNITY HEALTH PARTNERSHIPS LTD,25336266,"37,432.12",GB782562113,0060049422,
Department of Health,Bridgewater Community Healthcare NHS Foundation Trust,31-Jan-18,Lease Rents,Leigh Health Centre,COMMUNITY HEALTH PARTNERSHIPS LTD,25336266,"103,498.41",GB782562113,0060049422,
Department of Health,Bridgewater Community Healthcare NHS Foundation Trust,31-Jan-18,Lease Rents,Pemberton,COMMUNITY HEALTH PARTNERSHIPS LTD,25336266,"36,581.33",GB782562113,0060049422,
Department of Health,Bridgewater Community Healthcare NHS Foundation Trust,31-Jan-18,Lease Rents,Platt Bridge,COMMUNITY HEALTH PARTNERSHIPS LTD,25336266,"76,908.38",GB782562113,0060049422,
Department of Health,Bridgewater Community Healthcare NHS Foundation Trust,31-Jan-18,Lease Rents,Wigan Health Centre - Boston House,COMMUNITY HEALTH PARTNERSHIPS LTD,25336266,"76,809.19",GB782562113,0060049422,
Department of Health,Bridgewater Community Healthcare NHS Foundation Trust,31-Jan-18,Lease Rents,Bath Street,COMMUNITY HEALTH PARTNERSHIPS LTD,25336268,"68,172.45",GB782562113,0060049418,
Department of Health,Bridgewater Community Healthcare NHS Foundation Trust,31-Jan-18,Lease Rents,Child Development Centre Orford,COMMUNITY HEALTH PARTNERSHIPS LTD,25336268,"53,561.95",GB782562113,0060049418,
Department of Health,Bridgewater Community Healthcare NHS Foundation Trust,31-Jan-18,Rent,Bath Street,COMMUNITY HEALTH PARTNERSHIPS LTD,25336271,"67,380.24",GB782562113,0060052214,
Department of Health,Bridgewater Community Healthcare NHS Foundation Trust,31-Jan-18,Rent,Child Development Centre Orford,COMMUNITY HEALTH PARTNERSHIPS LTD,25336271,"53,561.95",GB782562113,0060052214,
Department of Health,Bridgewater Community Healthcare NHS Foundation Trust,31-Jan-18,Lease Rents,Chandler House,COMMUNITY HEALTH PARTNERSHIPS LTD,25336272,"54,952.72",GB782562113,0060052217,
Department of Health,Bridgewater Community Healthcare NHS Foundation Trust,31-Jan-18,Lease Rents,Claire House,COMMUNITY HEALTH PARTNERSHIPS LTD,25336272,"37,432.12",GB782562113,0060052217,
Department of Health,Bridgewater Community Healthcare NHS Foundation Trust,31-Jan-18,Lease Rents,Leigh Health Centre,COMMUNITY HEALTH PARTNERSHIPS LTD,25336272,"103,498.41",GB782562113,0060052217,
Department of Health,Bridgewater Community Healthcare NHS Foundation Trust,31-Jan-18,Lease Rents,Pemberton,COMMUNITY HEALTH PARTNERSHIPS LTD,25336272,"36,581.33",GB782562113,0060052217,
Department of Health,Bridgewater Community Healthcare NHS Foundation Trust,31-Jan-18,Lease Rents,Platt Bridge,COMMUNITY HEALTH PARTNERSHIPS LTD,25336272,"76,908.38",GB782562113,0060052217,
Department of Health,Bridgewater Community Healthcare NHS Foundation Trust,31-Jan-18,Lease Rents,Wigan Health Centre - Boston House,COMMUNITY HEALTH PARTNERSHIPS LTD,25336272,"76,809.19",GB782562113,0060052217,
Department of Health,Bridgewater Community Healthcare NHS Foundation Trust,31-Jan-18,Lease Rents,Widnes HCRC,COMMUNITY HEALTH PARTNERSHIPS LTD,25336273,"75,405.62",GB782562113,0060052041,
Department of Health,Bridgewater Community Healthcare NHS Foundation Trust,31-Jan-18,SrvcsRecd-FoundationTrust,Offender Health - Risley,GREATER MANCHESTER WEST MENTAL HEALTH NHS FOUNDATION TRUST,25336275,"44,339.94",654929594,0000026534,
Department of Health,Bridgewater Community Healthcare NHS Foundation Trust,31-Jan-18,SrvcsRecd-FoundationTrust,Offender Health HM Prison Healthcare (Hindley),GREATER MANCHESTER WEST MENTAL HEALTH NHS FOUNDATION TRUST,25336275,"77,694.51",654929594,0000026534,
Department of Health,Bridgewater Community Healthcare NHS Foundation Trust,31-Jan-18,Secndd staff frm othr org,Offender Health - Wymott,NATIONAL OFFENDER MANAGEMENT SERVICE,25336276,"28,614.16",,2127740,
Department of Health,Bridgewater Community Healthcare NHS Foundation Trust,31-Jan-18,External Consultancy Fees,Finance,KPMG LLP,25336279,"195,955.20",791788859,5501442243,
Department of Health,Bridgewater Community Healthcare NHS Foundation Trust,31-Jan-18,Rent,General Management,NHS PROPERTY SERVICES LTD,25347334,"29,264.12",,00000001H24161,
Department of Health,Bridgewater Community Healthcare NHS Foundation Trust,31-Jan-18,Rent,General Management,NHS PROPERTY SERVICES LTD,25347368,"49,146.00",,00000001H17642,
Department of Health,Bridgewater Community Healthcare NHS Foundation Trust,31-Jan-18,Commercial Sector,ICS,CUERDEN DEVELOPMENTS LTD,25347423,"168,045.83",,CRT1710B,
Department of Health,Bridgewater Community Healthcare NHS Foundation Trust,31-Jan-18,Commercial Sector,ICS,CUERDEN DEVELOPMENTS LTD,25347425,"33,609.17",,CRT1712,
Department of Health,Bridgewater Community Healthcare NHS Foundation Trust,31-Jan-18,Commercial Sector,ICS,CUERDEN DEVELOPMENTS LTD,25352360,"201,655.00",,CRT1710,
Department of Health,Bridgewater Community Healthcare NHS Foundation Trust,31-Jan-18,Rent,Bevan House,SHARMA INVESTMENTS LTD,25360284,"33,125.00",,BE17131117,
Department of Health,Bridgewater Community Healthcare NHS Foundation Trust,31-Jan-18,Hlthcre-Foundation Trsts,Midwifery - Halton,WARRINGTON & HALTON HOSPITALS NHS FOUNDATION TRUST,25443646,"32,891.00",654404741,15366441,
Department of Health,Bridgewater Community Healthcare NHS Foundation Trust,31-Jan-18,Computer Maintenance,Computing,SOFTCAT LTD,25446269,"26,930.88",491848503,INV01806301,
Department of Health,Bridgewater Community Healthcare NHS Foundation Trust,31-Jan-18,SrvcsRecd-FoundationTrust,Offender Health - Risley,GREATER MANCHESTER WEST MENTAL HEALTH NHS FOUNDATION TRUST,25454214,"44,339.93",654929594,0000026815,
Department of Health,Bridgewater Community Healthcare NHS Foundation Trust,31-Jan-18,SrvcsRecd-FoundationTrust,Offender Health HM Prison Healthcare (Hindley),GREATER MANCHESTER WEST MENTAL HEALTH NHS FOUNDATION TRUST,25454214,"77,730.56",654929594,0000026815,
Department of Health,Bridgewater Community Healthcare NHS Foundation Trust,31-Jan-18,Independent Sector,Intermediate Care Bed Based Team - Warrington,PHOENIX HEALTH WARRINGTON LTD,25503089,"39,000.00",,201718QTR4,
Department of Health,Bridgewater Community Healthcare NHS Foundation Trust,31-Jan-18,External Consultancy Fees,Strategic Development and Transformation,TRANSFORMING CARE LTD,25527789,"32,625.00",,TC2018BRIDGETOM1,
Department of Health,Bridgewater Community Healthcare NHS Foundation Trust,31-Jan-18,OOH Comms Equip/GP Rotas,GP Out of Hours Service - Wigan,DR JK AGARWALA,25547690,"33,345.21",,DEC172901,
Department of Health,Bridgewater Community Healthcare NHS Foundation Trust,31-Jan-18,Stationery,Procurement,CLARES OFFICE SUPPLIES LTD,25557956,"36,690.19",107340310,SINV00379484,
Department of Health,Bridgewater Community Healthcare NHS Foundation Trust,31-Jan-18,Stationery,Procurement,CLARES OFFICE SUPPLIES LTD,25557959,"36,690.19",107340310,SINV00379485,
Department of Health,Bridgewater Community Healthcare NHS Foundation Trust,31-Jan-18,Rent,Lister Road,NHS PROPERTY SERVICES LTD,25558057,"37,595.45",,H45051,
Department of Health,Bridgewater Community Healthcare NHS Foundation Trust,31-Jan-18,Med & Surg Equip Disp,Audiology Services - Wigan,AUDITDATA LTD,25559853,"47,534.40",892761678,PI002613,
